[Event "Titled Tuesday Blitz March 21 Late 2023"]
[White "Rustemov, Alexander"]
[Black "Shohat, Yotam"]
[WhiteFideId "4119002"]
[BlackFideId "2813955"]
[WhiteElo "2860"]
[BlackElo "2226"]
[Result "1-0"]
[Round "02"]
[TimeControl "180+2"]
[Date "2023.03.21"]
[WhiteClock "0:00:55"]
[BlackClock "0:00:03"]

1. d4 {[%clk 0:03:00]}  Nf6 {[%clk 0:02:54]} 2. c4 {[%clk 0:03:01]}  e6 {[%clk 0:02:52]} 3. Nf3 {[%clk 0:03:01]}  b6 {[%clk 0:02:51]} 4. a3 {[%clk 0:03:01]}  Bb7 {[%clk 0:02:49]} 5. Nc3 {[%clk 0:03:02]}  d5 {[%clk 0:02:46]} 6. Bg5 {[%clk 0:03:02]}  Be7 {[%clk 0:02:44]} 7. Bxf6 {[%clk 0:03:02]}  Bxf6 {[%clk 0:02:44]} 8. cxd5 {[%clk 0:03:03]}  exd5 {[%clk 0:02:42]} 9. Qa4+ {[%clk 0:03:03]}  c6 {[%clk 0:02:39]} 10. g3 {[%clk 0:03:03]}  O-O {[%clk 0:02:39]} 11. Rd1 {[%clk 0:03:03]}  Re8 {[%clk 0:02:38]} 12. Bg2 {[%clk 0:03:03]}  Nd7 {[%clk 0:02:38]} 13. O-O {[%clk 0:03:03]}  Nf8 {[%clk 0:02:38]} 14. e3 {[%clk 0:03:02]}  Ne6 {[%clk 0:02:35]} 15. Rd2 {[%clk 0:03:02]}  Qd6 {[%clk 0:02:33]} 16. Rfd1 {[%clk 0:02:53]}  Qe7 {[%clk 0:02:16]} 17. b4 {[%clk 0:02:42]}  a5 {[%clk 0:02:10]} 18. Qb3 {[%clk 0:02:27]}  axb4 {[%clk 0:02:09]} 19. axb4 {[%clk 0:02:28]}  Nc7 {[%clk 0:02:02]} 20. Ne1 {[%clk 0:02:19]}  Ba6 {[%clk 0:01:57]} 21. Bf1 {[%clk 0:02:13]}  Bxf1 {[%clk 0:01:57]} 22. Kxf1 {[%clk 0:02:13]}  c5 {[%clk 0:01:27]} 23. bxc5 {[%clk 0:02:05]}  bxc5 {[%clk 0:01:25]} 24. dxc5 {[%clk 0:02:02]}  Reb8 {[%clk 0:01:23]} 25. Qc2 {[%clk 0:01:57]}  Bxc3 {[%clk 0:00:49]} 26. Qxc3 {[%clk 0:01:57]}  Qe4 {[%clk 0:00:42]} 27. Kg1 {[%clk 0:01:50]}  Ne6 {[%clk 0:00:38]} 28. Qc2 {[%clk 0:01:38]}  Ng5 {[%clk 0:00:20]} 29. Qxe4 {[%clk 0:01:37]}  Nxe4 {[%clk 0:00:20]} 30. Rc2 {[%clk 0:01:36]}  Rd8 {[%clk 0:00:09]} 31. Nf3 {[%clk 0:01:29]}  Rac8 {[%clk 0:00:09]} 32. Rdc1 {[%clk 0:01:27]}  f6 {[%clk 0:00:08]} 33. Nd4 {[%clk 0:01:26]}  Kf7 {[%clk 0:00:09]} 34. c6 {[%clk 0:01:22]}  Ng5 {[%clk 0:00:05]} 35. Nb5 {[%clk 0:01:19]}  Ne6 {[%clk 0:00:05]} 36. Rd1 {[%clk 0:01:11]}  Ke7 {[%clk 0:00:05]} 37. Rcd2 {[%clk 0:01:10]}  Nc7 {[%clk 0:00:04]} 38. Nd4 {[%clk 0:01:06]}  g6 {[%clk 0:00:03]} 39. Rb1 {[%clk 0:01:00]}  Ne6 {[%clk 0:00:03]} 40. Rb7+ {[%clk 0:00:59]}  Rc7 {[%clk 0:00:03]} 41. Nxe6 {[%clk 0:00:59]}  Rxb7 {[%clk 0:00:03]} 42. cxb7 {[%clk 0:00:57]}  Kxe6 {[%clk 0:00:03]} 43. Rc2 {[%clk 0:00:55]} 1-0


[Site "https://www.chess.com"]

[Event "Titled Tuesday Blitz March 21 Late 2023"]
[White "Stelmaszyk, Nico"]
[Black "Ozen, Bahadir"]
[WhiteFideId "16200462"]
[BlackFideId "6337058"]
[WhiteElo "2255"]
[BlackElo "2503"]
[Result "0-1"]
[Round "02"]
[TimeControl "180+2"]
[Date "2023.03.21"]
[WhiteClock "0:00:08"]
[BlackClock "0:00:15"]

1. e4 {[%clk 0:02:59]}  e5 {[%clk 0:02:59]} 2. Bc4 {[%clk 0:02:57]}  Nf6 {[%clk 0:02:59]} 3. d4 {[%clk 0:02:56]}  exd4 {[%clk 0:02:55]} 4. Nf3 {[%clk 0:02:56]}  Nc6 {[%clk 0:02:35]} 5. O-O {[%clk 0:02:56]}  Nxe4 {[%clk 0:02:19]} 6. Re1 {[%clk 0:02:55]}  d5 {[%clk 0:02:19]} 7. Nc3 {[%clk 0:02:56]}  dxc4 {[%clk 0:02:10]} 8. Rxe4+ {[%clk 0:02:55]}  Be7 {[%clk 0:02:05]} 9. Nxd4 {[%clk 0:02:56]}  O-O {[%clk 0:01:53]} 10. Nxc6 {[%clk 0:02:56]}  bxc6 {[%clk 0:01:53]} 11. Qxd8 {[%clk 0:02:55]}  Bxd8 {[%clk 0:01:53]} 12. Rxc4 {[%clk 0:02:55]}  Bf5 {[%clk 0:01:40]} 13. Rxc6 {[%clk 0:02:48]}  Bxc2 {[%clk 0:01:40]} 14. Bf4 {[%clk 0:02:48]}  Rb8 {[%clk 0:01:35]} 15. b3 {[%clk 0:02:47]}  Bf6 {[%clk 0:01:16]} 16. Rc1 {[%clk 0:02:47]}  Rfe8 {[%clk 0:01:06]} 17. Nd5 {[%clk 0:02:46]}  Bb2 {[%clk 0:01:03]} 18. R6xc2 {[%clk 0:02:42]}  Bxc1 {[%clk 0:01:04]} 19. Rxc1 {[%clk 0:02:43]}  Rbd8 {[%clk 0:01:04]} 20. Nxc7 {[%clk 0:02:42]}  Re2 {[%clk 0:01:04]} 21. a3 {[%clk 0:02:32]}  g5 {[%clk 0:01:04]} 22. Bxg5 {[%clk 0:02:08]}  Rc2 {[%clk 0:01:01]} 23. Rf1 {[%clk 0:02:08]}  Rd3 {[%clk 0:00:43]} 24. Na6 {[%clk 0:01:35]}  Rxb3 {[%clk 0:00:39]} 25. Be7 {[%clk 0:01:35]}  Rc6 {[%clk 0:00:34]} 26. Nb4 {[%clk 0:01:32]}  Re6 {[%clk 0:00:33]} 27. Bc5 {[%clk 0:01:28]}  Rxa3 {[%clk 0:00:33]} 28. Be3 {[%clk 0:01:28]}  a5 {[%clk 0:00:31]} 29. Nd5 {[%clk 0:01:27]}  Rb3 {[%clk 0:00:20]} 30. Rc1 {[%clk 0:01:23]}  Kg7 {[%clk 0:00:16]} 31. h4 {[%clk 0:01:21]}  h5 {[%clk 0:00:16]} 32. Rc8 {[%clk 0:01:18]}  a4 {[%clk 0:00:14]} 33. Ra8 {[%clk 0:01:16]}  a3 {[%clk 0:00:14]} 34. Nf4 {[%clk 0:01:13]}  Rd6 {[%clk 0:00:11]} 35. Nxh5+ {[%clk 0:01:12]}  Kh7 {[%clk 0:00:11]} 36. Ng3 {[%clk 0:01:09]}  Rd1+ {[%clk 0:00:11]} 37. Kh2 {[%clk 0:01:09]}  Rdd3 {[%clk 0:00:10]} 38. Ne4 {[%clk 0:01:06]}  Rb2 {[%clk 0:00:10]} 39. Ng5+ {[%clk 0:01:02]}  Kg6 {[%clk 0:00:10]} 40. Ra6+ {[%clk 0:01:02]}  f6 {[%clk 0:00:10]} 41. Ne4 {[%clk 0:01:01]}  a2 {[%clk 0:00:11]} 42. Rxf6+ {[%clk 0:00:56]}  Kg7 {[%clk 0:00:11]} 43. Ra6 {[%clk 0:00:54]}  Rd1 {[%clk 0:00:09]} 44. Nc3 {[%clk 0:00:37]}  a1=Q {[%clk 0:00:04]} 45. Rxa1 {[%clk 0:00:37]}  Rxa1 {[%clk 0:00:05]} 46. Ne2 {[%clk 0:00:38]}  Rxe2 {[%clk 0:00:03]} 47. Bd4+ {[%clk 0:00:38]}  Kg6 {[%clk 0:00:03]} 48. Bxa1 {[%clk 0:00:39]}  Rxf2 {[%clk 0:00:04]} 49. Bd4 {[%clk 0:00:35]}  Rf4 {[%clk 0:00:04]} 50. Be3 {[%clk 0:00:24]}  Rxh4+ {[%clk 0:00:04]} 51. Kg3 {[%clk 0:00:25]}  Ra4 {[%clk 0:00:05]} 52. Kf3 {[%clk 0:00:25]}  Kf5 {[%clk 0:00:06]} 53. Bc5 {[%clk 0:00:20]}  Rc4 {[%clk 0:00:05]} 54. g4+ {[%clk 0:00:16]}  Rxg4 {[%clk 0:00:06]} 55. Bf2 {[%clk 0:00:17]}  Rc4 {[%clk 0:00:07]} 56. Kg2 {[%clk 0:00:17]}  Rc2 {[%clk 0:00:07]} 57. Kf3 {[%clk 0:00:15]}  Rc3+ {[%clk 0:00:07]} 58. Kg2 {[%clk 0:00:15]}  Kg4 {[%clk 0:00:08]} 59. Bg1 {[%clk 0:00:16]}  Rh3 {[%clk 0:00:07]} 60. Bh2 {[%clk 0:00:16]}  Rh7 {[%clk 0:00:08]} 61. Bg1 {[%clk 0:00:16]}  Rg7 {[%clk 0:00:07]} 62. Bh2 {[%clk 0:00:16]}  Rg8 {[%clk 0:00:08]} 63. Bg1 {[%clk 0:00:16]}  Kf4+ {[%clk 0:00:08]} 64. Kh1 {[%clk 0:00:16]}  Kf3 {[%clk 0:00:08]} 65. Bh2 {[%clk 0:00:16]}  Rh8 {[%clk 0:00:09]} 66. Kg1 {[%clk 0:00:15]}  Rh5 {[%clk 0:00:10]} 67. Kh1 {[%clk 0:00:16]}  Kg4 {[%clk 0:00:11]} 68. Kg2 {[%clk 0:00:16]}  Rg5 {[%clk 0:00:10]} 69. Bg1 {[%clk 0:00:15]}  Kh4+ {[%clk 0:00:11]} 70. Kh1 {[%clk 0:00:15]}  Kh3 {[%clk 0:00:11]} 71. Bh2 {[%clk 0:00:15]}  Rb5 {[%clk 0:00:12]} 72. Bg1 {[%clk 0:00:15]}  Rb2 {[%clk 0:00:12]} 73. Be3 {[%clk 0:00:15]}  Rh2+ {[%clk 0:00:13]} 74. Kg1 {[%clk 0:00:15]}  Re2 {[%clk 0:00:13]} 75. Bf2 {[%clk 0:00:16]}  Kg4 {[%clk 0:00:14]} 76. Kg2 {[%clk 0:00:14]}  Rd2 {[%clk 0:00:14]} 77. Kg1 {[%clk 0:00:08]}  Kf3 {[%clk 0:00:15]} 78. Bb6 {[%clk 0:00:08]}  Rb2 {[%clk 0:00:15]} 79. Kh1 {[%clk 0:00:08]}  Rxb6 {[%clk 0:00:15]} 0-1


[Site "https://www.chess.com"]

[Event "Titled Tuesday Blitz March 21 Late 2023"]
[White "Bilan, Danila"]
[Black "Timofeev, Artyom"]
[WhiteFideId "24161918"]
[BlackFideId "4140419"]
[WhiteElo "2182"]
[BlackElo "2586"]
[Result "0-1"]
[Round "02"]
[TimeControl "180+2"]
[Date "2023.03.21"]
[WhiteClock "0:00:03"]
[BlackClock "0:01:07"]

1. d4 {[%clk 0:03:00]}  d5 {[%clk 0:02:59]} 2. Nf3 {[%clk 0:03:00]}  Nf6 {[%clk 0:02:57]} 3. c4 {[%clk 0:03:00]}  e6 {[%clk 0:02:57]} 4. Nc3 {[%clk 0:02:58]}  h6 {[%clk 0:02:56]} 5. cxd5 {[%clk 0:02:56]}  exd5 {[%clk 0:02:56]} 6. Bf4 {[%clk 0:02:57]}  Bd6 {[%clk 0:02:56]} 7. Bg3 {[%clk 0:02:56]}  c6 {[%clk 0:02:54]} 8. e3 {[%clk 0:02:56]}  O-O {[%clk 0:02:53]} 9. Bd3 {[%clk 0:02:55]}  Re8 {[%clk 0:02:51]} 10. Qc2 {[%clk 0:02:54]}  Qe7 {[%clk 0:02:40]} 11. Ne5 {[%clk 0:02:37]}  Nbd7 {[%clk 0:02:38]} 12. f4 {[%clk 0:02:33]}  c5 {[%clk 0:02:17]} 13. O-O {[%clk 0:02:15]}  c4 {[%clk 0:02:12]} 14. Bf5 {[%clk 0:02:07]}  Nb6 {[%clk 0:02:09]} 15. Bh4 {[%clk 0:02:00]}  Bxf5 {[%clk 0:02:07]} 16. Qxf5 {[%clk 0:02:01]}  Qe6 {[%clk 0:02:07]} 17. Qc2 {[%clk 0:01:50]}  Bb4 {[%clk 0:01:49]} 18. f5 {[%clk 0:01:30]}  Qd6 {[%clk 0:01:47]} 19. Rf3 {[%clk 0:01:22]}  Bxc3 {[%clk 0:01:45]} 20. bxc3 {[%clk 0:01:23]}  Ne4 {[%clk 0:01:44]} 21. f6 {[%clk 0:01:17]}  Nd7 {[%clk 0:01:37]} 22. Nxd7 {[%clk 0:01:06]}  Qxd7 {[%clk 0:01:36]} 23. fxg7 {[%clk 0:01:05]}  Qg4 {[%clk 0:01:36]} 24. Bg3 {[%clk 0:00:57]}  Qg6 {[%clk 0:01:28]} 25. Raf1 {[%clk 0:00:43]}  Ng5 {[%clk 0:01:24]} 26. Rf5 {[%clk 0:00:34]}  Rxe3 {[%clk 0:01:23]} 27. Be5 {[%clk 0:00:18]}  Nf3+ {[%clk 0:01:19]} 28. R5xf3 {[%clk 0:00:14]}  Rxf3 {[%clk 0:01:13]} 29. Qxg6 {[%clk 0:00:09]}  Rxf1+ {[%clk 0:01:13]} 30. Kxf1 {[%clk 0:00:09]}  fxg6 {[%clk 0:01:13]} 31. Kf2 {[%clk 0:00:08]}  b5 {[%clk 0:01:13]} 32. Ke2 {[%clk 0:00:07]}  a5 {[%clk 0:01:13]} 33. a3 {[%clk 0:00:07]}  Ra7 {[%clk 0:01:09]} 34. h3 {[%clk 0:00:06]}  Rb7 {[%clk 0:01:09]} 35. Kd2 {[%clk 0:00:04]}  b4 {[%clk 0:01:09]} 36. axb4 {[%clk 0:00:04]}  axb4 {[%clk 0:01:09]} 37. Kc2 {[%clk 0:00:03]}  b3+ {[%clk 0:01:08]} 38. Kb2 {[%clk 0:00:03]}  Ra7 {[%clk 0:01:07]} 0-1


[Site "https://www.chess.com"]

[Event "Titled Tuesday Blitz March 21 Late 2023"]
[White "Mazurkiewicz, Michal"]
[Black "Averjanov, Alexey"]
[WhiteFideId "1124943"]
[BlackFideId "14109867"]
[WhiteElo "2054"]
[BlackElo "2809"]
[Result "0-1"]
[Round "02"]
[TimeControl "180+2"]
[Date "2023.03.21"]
[WhiteClock "0:00:19"]
[BlackClock "0:00:10"]

1. e4 {[%clk 0:03:00]}  c6 {[%clk 0:02:59]} 2. d3 {[%clk 0:03:00]}  d5 {[%clk 0:03:00]} 3. Nd2 {[%clk 0:03:01]}  e5 {[%clk 0:02:59]} 4. Ngf3 {[%clk 0:03:01]}  Bd6 {[%clk 0:02:59]} 5. d4 {[%clk 0:03:02]}  exd4 {[%clk 0:02:55]} 6. exd5 {[%clk 0:03:02]}  Nf6 {[%clk 0:02:54]} 7. dxc6 {[%clk 0:03:02]}  Nxc6 {[%clk 0:02:54]} 8. Nb3 {[%clk 0:03:02]}  O-O {[%clk 0:02:24]} 9. Be2 {[%clk 0:03:02]}  Re8 {[%clk 0:02:19]} 10. O-O {[%clk 0:03:02]}  Bc7 {[%clk 0:02:05]} 11. Nbxd4 {[%clk 0:02:56]}  Nxd4 {[%clk 0:02:00]} 12. Nxd4 {[%clk 0:02:55]}  Qd6 {[%clk 0:01:18]} 13. Nf3 {[%clk 0:02:51]}  Rxe2 {[%clk 0:01:11]} 14. Qxe2 {[%clk 0:02:48]}  Bg4 {[%clk 0:01:12]} 15. Rd1 {[%clk 0:01:57]}  Bxf3 {[%clk 0:01:06]} 16. Qxf3 {[%clk 0:01:57]}  Qxh2+ {[%clk 0:01:06]} 17. Kf1 {[%clk 0:01:58]}  Re8 {[%clk 0:01:03]} 18. Be3 {[%clk 0:01:58]}  h6 {[%clk 0:00:49]} 19. g3 {[%clk 0:01:52]}  Qh3+ {[%clk 0:00:44]} 20. Qg2 {[%clk 0:01:48]}  Qh5 {[%clk 0:00:43]} 21. Re1 {[%clk 0:01:33]}  Ng4 {[%clk 0:00:39]} 22. Kg1 {[%clk 0:01:14]}  Ne5 {[%clk 0:00:29]} 23. g4 {[%clk 0:00:19]}  Nxg4 {[%clk 0:00:26]} 24. Bf4 {[%clk 0:00:19]}  Rxe1+ {[%clk 0:00:21]} 25. Rxe1 {[%clk 0:00:20]}  Bxf4 {[%clk 0:00:08]} 26. Re8+ {[%clk 0:00:19]}  Kh7 {[%clk 0:00:09]} 27. Qe4+ {[%clk 0:00:20]}  Qg6 {[%clk 0:00:09]} 28. Qxf4 {[%clk 0:00:19]}  Nf6+ {[%clk 0:00:08]} 29. Qg3 {[%clk 0:00:19]}  Qxg3+ {[%clk 0:00:08]} 30. fxg3 {[%clk 0:00:20]}  Nxe8 {[%clk 0:00:09]} 31. c4 {[%clk 0:00:18]}  Kg6 {[%clk 0:00:09]} 32. b4 {[%clk 0:00:19]}  Kf5 {[%clk 0:00:09]} 33. c5 {[%clk 0:00:19]}  Ke4 {[%clk 0:00:09]} 34. a4 {[%clk 0:00:19]}  Kd5 {[%clk 0:00:10]} 35. a5 {[%clk 0:00:19]}  a6 {[%clk 0:00:10]} 0-1


[Site "https://www.chess.com"]

[Event "Titled Tuesday Blitz March 21 Late 2023"]
[White "Beulen, Marcel"]
[Black "Klekowski, Maciej"]
[WhiteFideId "1001450"]
[BlackFideId "1132717"]
[WhiteElo "2431"]
[BlackElo "2540"]
[Result "0-1"]
[Round "02"]
[TimeControl "180+2"]
[Date "2023.03.21"]
[WhiteClock "0:00:22"]
[BlackClock "0:00:56"]

1. e4 {[%clk 0:03:00]}  c5 {[%clk 0:03:00]} 2. Nf3 {[%clk 0:03:00]}  e6 {[%clk 0:03:00]} 3. c3 {[%clk 0:03:00]}  Nf6 {[%clk 0:03:00]} 4. e5 {[%clk 0:03:00]}  Nd5 {[%clk 0:03:01]} 5. g3 {[%clk 0:03:00]}  Nc6 {[%clk 0:03:01]} 6. Bg2 {[%clk 0:03:00]}  d6 {[%clk 0:03:01]} 7. exd6 {[%clk 0:02:59]}  Bxd6 {[%clk 0:03:02]} 8. O-O {[%clk 0:02:59]}  O-O {[%clk 0:03:03]} 9. d4 {[%clk 0:02:59]}  Qe7 {[%clk 0:03:01]} 10. dxc5 {[%clk 0:02:39]}  Bxc5 {[%clk 0:03:02]} 11. Nbd2 {[%clk 0:02:39]}  Rd8 {[%clk 0:03:00]} 12. Qe2 {[%clk 0:02:38]}  h6 {[%clk 0:02:52]} 13. Ne4 {[%clk 0:02:38]}  Bb6 {[%clk 0:02:49]} 14. c4 {[%clk 0:02:31]}  Ndb4 {[%clk 0:02:47]} 15. Bd2 {[%clk 0:02:06]}  Nc2 {[%clk 0:02:34]} 16. Rac1 {[%clk 0:02:05]}  N2d4 {[%clk 0:02:33]} 17. Nxd4 {[%clk 0:02:04]}  Nxd4 {[%clk 0:02:34]} 18. Qe1 {[%clk 0:01:48]}  e5 {[%clk 0:01:59]} 19. c5 {[%clk 0:01:41]}  Bc7 {[%clk 0:01:57]} 20. Be3 {[%clk 0:01:34]}  Be6 {[%clk 0:01:52]} 21. a3 {[%clk 0:01:29]}  Nb3 {[%clk 0:01:37]} 22. Rc3 {[%clk 0:01:25]}  f5 {[%clk 0:01:33]} 23. Nd2 {[%clk 0:01:25]}  Nxd2 {[%clk 0:01:33]} 24. Bxd2 {[%clk 0:01:25]}  e4 {[%clk 0:01:28]} 25. b4 {[%clk 0:01:20]}  Be5 {[%clk 0:01:23]} 26. Rc1 {[%clk 0:01:15]}  Rd3 {[%clk 0:01:23]} 27. a4 {[%clk 0:01:12]}  Rad8 {[%clk 0:01:23]} 28. Be3 {[%clk 0:01:11]}  Bb2 {[%clk 0:01:19]} 29. Rb1 {[%clk 0:01:10]}  Qf6 {[%clk 0:01:14]} 30. Qe2 {[%clk 0:01:08]}  Bd4 {[%clk 0:01:12]} 31. Rfd1 {[%clk 0:01:02]}  Bxe3 {[%clk 0:01:12]} 32. Rxd3 {[%clk 0:00:52]}  Bxf2+ {[%clk 0:01:13]} 33. Qxf2 {[%clk 0:00:49]}  Rxd3 {[%clk 0:01:13]} 34. b5 {[%clk 0:00:49]}  Qc3 {[%clk 0:01:11]} 35. Re1 {[%clk 0:00:37]}  Rd2 {[%clk 0:01:11]} 36. Qe3 {[%clk 0:00:37]}  Qxe3+ {[%clk 0:00:57]} 37. Rxe3 {[%clk 0:00:38]}  Rc2 {[%clk 0:00:57]} 38. g4 {[%clk 0:00:37]}  g6 {[%clk 0:00:57]} 39. gxf5 {[%clk 0:00:37]}  gxf5 {[%clk 0:00:58]} 40. c6 {[%clk 0:00:31]}  bxc6 {[%clk 0:00:59]} 41. bxc6 {[%clk 0:00:31]}  Rxc6 {[%clk 0:00:59]} 42. Kf2 {[%clk 0:00:29]}  Kf7 {[%clk 0:00:59]} 43. Kg3 {[%clk 0:00:29]}  Kf6 {[%clk 0:00:59]} 44. Kf4 {[%clk 0:00:30]}  Rc4 {[%clk 0:01:00]} 45. a5 {[%clk 0:00:29]}  Rc2 {[%clk 0:00:59]} 46. Rg3 {[%clk 0:00:28]}  Rf2+ {[%clk 0:00:58]} 47. Ke3 {[%clk 0:00:28]}  Ra2 {[%clk 0:00:58]} 48. Rh3 {[%clk 0:00:22]}  Ke5 {[%clk 0:00:57]} 49. Rxh6 {[%clk 0:00:22]}  f4# {[%clk 0:00:56]} 0-1


[Site "https://www.chess.com"]

[Event "Titled Tuesday Blitz March 21 Late 2023"]
[White "Bogaudinov, Rushan"]
[Black "Papasimakopoulos, Alexandros"]
[WhiteFideId "4129288"]
[BlackFideId "4244125"]
[WhiteElo "1949"]
[BlackElo "2359"]
[Result "1/2-1/2"]
[Round "02"]
[TimeControl "180+2"]
[Date "2023.03.21"]
[WhiteClock "0:00:05"]
[BlackClock "0:00:02"]

1. d4 {[%clk 0:02:33]}  e6 {[%clk 0:02:48]} 2. Nf3 {[%clk 0:02:33]}  Nf6 {[%clk 0:02:47]} 3. g3 {[%clk 0:02:31]}  b5 {[%clk 0:02:41]} 4. a4 {[%clk 0:02:29]}  b4 {[%clk 0:02:41]} 5. Bg2 {[%clk 0:02:28]}  Bb7 {[%clk 0:02:41]} 6. O-O {[%clk 0:02:28]}  a5 {[%clk 0:02:39]} 7. Nbd2 {[%clk 0:02:25]}  Na6 {[%clk 0:02:36]} 8. Re1 {[%clk 0:02:10]}  c5 {[%clk 0:02:36]} 9. e4 {[%clk 0:02:04]}  d5 {[%clk 0:02:33]} 10. exd5 {[%clk 0:01:50]}  Bxd5 {[%clk 0:02:32]} 11. c4 {[%clk 0:01:38]}  bxc3 {[%clk 0:02:32]} 12. bxc3 {[%clk 0:01:38]}  cxd4 {[%clk 0:02:30]} 13. Nxd4 {[%clk 0:01:30]}  Bxg2 {[%clk 0:02:30]} 14. Kxg2 {[%clk 0:01:31]}  Qd5+ {[%clk 0:02:28]} 15. Qf3 {[%clk 0:01:30]}  Bc5 {[%clk 0:02:21]} 16. Ba3 {[%clk 0:01:21]}  O-O {[%clk 0:02:10]} 17. Ne4 {[%clk 0:01:13]}  Nxe4 {[%clk 0:02:07]} 18. Qxe4 {[%clk 0:01:12]}  Qxe4+ {[%clk 0:02:05]} 19. Rxe4 {[%clk 0:01:12]}  Bxa3 {[%clk 0:02:05]} 20. Rxa3 {[%clk 0:01:11]}  Nc5 {[%clk 0:02:06]} 21. Re3 {[%clk 0:01:07]}  Rfc8 {[%clk 0:01:58]} 22. Nb5 {[%clk 0:00:58]}  Rab8 {[%clk 0:01:48]} 23. c4 {[%clk 0:00:57]}  Na6 {[%clk 0:01:45]} 24. Rac3 {[%clk 0:00:54]}  Nc5 {[%clk 0:01:42]} 25. Ra3 {[%clk 0:00:53]}  Nd7 {[%clk 0:01:42]} 26. Rec3 {[%clk 0:00:44]}  Rc5 {[%clk 0:01:36]} 27. Ra1 {[%clk 0:00:34]}  Nb6 {[%clk 0:01:35]} 28. Nd6 {[%clk 0:00:28]}  Rc6 {[%clk 0:01:22]} 29. c5 {[%clk 0:00:19]}  Nd7 {[%clk 0:01:17]} 30. Rac1 {[%clk 0:00:18]}  h6 {[%clk 0:01:09]} 31. Nb5 {[%clk 0:00:15]}  Kf8 {[%clk 0:01:04]} 32. Nd4 {[%clk 0:00:14]}  Rcc8 {[%clk 0:01:00]} 33. c6 {[%clk 0:00:14]}  Nb6 {[%clk 0:00:55]} 34. c7 {[%clk 0:00:10]}  Ra8 {[%clk 0:00:55]} 35. Rb1 {[%clk 0:00:04]}  Nd5 {[%clk 0:00:53]} 36. Rc5 {[%clk 0:00:04]}  Rxc7 {[%clk 0:00:53]} 37. Rxc7 {[%clk 0:00:04]}  Nxc7 {[%clk 0:00:54]} 38. Rb7 {[%clk 0:00:04]}  Na6 {[%clk 0:00:48]} 39. Nc6 {[%clk 0:00:04]}  Nc5 {[%clk 0:00:47]} 40. Rb5 {[%clk 0:00:04]}  Nxa4 {[%clk 0:00:47]} 41. Rxa5 {[%clk 0:00:04]}  Rxa5 {[%clk 0:00:47]} 42. Nxa5 {[%clk 0:00:05]}  Nb6 {[%clk 0:00:47]} 43. Nb3 {[%clk 0:00:05]}  Nc4 {[%clk 0:00:46]} 44. Nd4 {[%clk 0:00:04]}  e5 {[%clk 0:00:42]} 45. Ne2 {[%clk 0:00:04]}  Ke7 {[%clk 0:00:42]} 46. h4 {[%clk 0:00:05]}  h5 {[%clk 0:00:40]} 47. Nc3 {[%clk 0:00:05]}  Ke6 {[%clk 0:00:38]} 48. Ne2 {[%clk 0:00:06]}  f6 {[%clk 0:00:36]} 49. Kf3 {[%clk 0:00:06]}  Nd6 {[%clk 0:00:35]} 50. Kg2 {[%clk 0:00:07]}  Kd5 {[%clk 0:00:35]} 51. Ng1 {[%clk 0:00:07]}  Ke4 {[%clk 0:00:34]} 52. Nf3 {[%clk 0:00:08]}  Nf5 {[%clk 0:00:32]} 53. Nd2+ {[%clk 0:00:08]}  Kd3 {[%clk 0:00:32]} 54. Nb3 {[%clk 0:00:08]}  Kc4 {[%clk 0:00:29]} 55. Nd2+ {[%clk 0:00:08]}  Kd5 {[%clk 0:00:27]} 56. Nf3 {[%clk 0:00:08]}  Nd4 {[%clk 0:00:28]} 57. Ne1 {[%clk 0:00:07]}  e4 {[%clk 0:00:26]} 58. Kf1 {[%clk 0:00:08]}  Nf5 {[%clk 0:00:20]} 59. Ng2 {[%clk 0:00:08]}  g5 {[%clk 0:00:19]} 60. hxg5 {[%clk 0:00:08]}  fxg5 {[%clk 0:00:20]} 61. Ke2 {[%clk 0:00:08]}  Kd4 {[%clk 0:00:20]} 62. Ne1 {[%clk 0:00:08]}  h4 {[%clk 0:00:19]} 63. gxh4 {[%clk 0:00:08]}  gxh4 {[%clk 0:00:19]} 64. Kf1 {[%clk 0:00:08]}  Kc3 {[%clk 0:00:13]} 65. Ng2 {[%clk 0:00:07]}  Kd2 {[%clk 0:00:07]} 66. Nf4 {[%clk 0:00:07]}  Kd1 {[%clk 0:00:04]} 67. Ne6 {[%clk 0:00:06]}  h3 {[%clk 0:00:04]} 68. Nf4 {[%clk 0:00:05]}  h2 {[%clk 0:00:02]} 69. Kg2 {[%clk 0:00:05]}  Ke1 {[%clk 0:00:02]} 70. Nh3 {[%clk 0:00:05]}  e3 {[%clk 0:00:01]} 71. fxe3 {[%clk 0:00:05]}  Nxe3+ {[%clk 0:00:02]} 72. Kxh2 {[%clk 0:00:05]} 1/2-1/2


[Site "https://www.chess.com"]